bitfinex/quotes_SOLUSD_20250522
["timestamp","ask_amount","ask_price","bid_price","bid_amount"]
[1747903220842,13.79125781,179.53,179.5,59.44]
[1747903221144,13.79125781,179.53,179.5,33.44]
[1747903221747,45.48889566,179.59,179.5,33.44]
[1747903221748,13.79125781,179.54,179.5,33.44]
[1747903221938,13.79125781,179.55,179.5,33.44]
[1747903222242,5.56978946,179.54,179.5,33.44]
[1747903222641,33.28552092,179.54,179.5,33.44]
[1747903222843,19.49426311,179.54,179.5,33.44]
[1747903223143,13.79125781,179.53,179.5,33.44]
[1747903223655,19.49426311,179.54,179.5,33.44]
[1747903224559,5.56978946,179.54,179.5,33.44]
[1747903225239,5.56978946,179.54,179.51,2.4]
[1747903226643,19.36104727,179.54,179.5,33.44]
[1747903227360,5.56978946,179.54,179.5,33.44]
[1747903228683,13.79125781,179.54,179.5,33.44]
[1747903229750,5.5700997,179.53,179.5,33.44]
[1747903230352,5.5700997,179.53,179.51,2.4]
[1747903230669,5.5700997,179.53,179.5,33.44]
[1747903231370,13.79125781,179.51,179.45,83.0]
[1747903231554,13.79125781,179.5,179.44,33.42]
[1747903231754,19.49534896,179.53,179.44,33.42]
[1747903231755,5.57072029,179.51,179.47,26.0]
[1747903232740,5.57072029,179.51,179.48,18.64964886]
[1747903232945,5.5700997,179.53,179.51,26.0]
[1747903233153,5.56947925,179.55,179.52,26.0]
[1747903233850,5.56885894,179.57,179.52,26.0]
[1747903235267,19.48232674,179.65,179.56,26.0]
[1747903235471,13.79125781,179.62,179.56,26.0]
[1747903235876,19.48232674,179.65,179.57,44.64964886]
[1747903235877,33.27358455,179.65,179.57,44.64964886]
[1747903236175,19.48232674,179.65,179.57,44.64964886]
[1747903236348,33.27358455,179.65,179.57,44.64964886]
[1747903236544,13.79125781,179.64,179.57,44.64964886]
[1747903236776,13.79125781,179.63,179.57,44.64964886]
[1747903237871,13.91672233,179.64,179.57,44.64964886]
[1747903238369,13.79125781,179.63,179.57,44.64964886]
[1747903238683,13.79125781,179.62,179.57,44.64964886]
[1747903239365,5.56761872,179.61,179.57,44.64964886]
[1747903240545,5.56730876,179.62,179.57,44.64964886]
[1747903244771,33.27683847,179.62,179.57,26.0]
[1747903245174,19.48558066,179.62,179.57,33.4]
[1747903245483,33.27683847,179.62,179.57,33.4]
[1747903245984,33.27683847,179.62,179.58,0.5]
[1747903246354,19.48558066,179.62,179.58,0.5]
[1747903248184,10.0,179.36,179.28,6.13036978]
[1747903248488,16.75614878,179.35,179.28,1.60434601]
[1747903248687,0.9556,179.57,179.28,1.60434601]
[1747903248688,13.79125781,179.38,179.28,1.60434601]
[1747903248865,19.51056357,179.39,179.29,53.5]
[1747903249181,19.51056357,179.39,179.3,53.5]
[1747903249393,13.79125781,179.31,179.29,53.5]
[1747903249880,21.74434507,179.31,179.28,1.60434601]
[1747903250060,21.74434507,179.31,179.28,55.10434601]
[1747903250264,21.74434507,179.31,179.28,53.5]
[1747903250850,5.57724484,179.3,179.28,53.5]
[1747903251054,27.32158991,179.3,179.28,53.5]
[1747903251776,21.74434507,179.29,179.2,208.4]
[1747903251982,19.52035694,179.3,179.21,86.94]
[1747903251983,21.74434507,179.27,179.21,86.94]
[1747903252482,19.52035694,179.3,179.21,86.94]
[1747903252661,21.74434507,179.28,179.21,86.94]
[1747903253066,21.74434507,179.27,179.22,86.94]
[1747903253384,21.74434507,179.27,179.23,53.54]
[1747903254083,21.74434507,179.28,179.23,53.54]
[1747903254282,21.74434507,179.27,179.23,53.54]
[1747903254450,21.74434507,179.28,179.23,53.54]
[1747903254860,21.74434507,179.27,179.23,53.54]
[1747903258174,21.74434507,179.25,179.19,208.58]
[1747903258366,21.74434507,179.24,179.23,53.56]
[1747903258884,28.64964886,179.32,179.23,53.56]
[1747903258885,5.57600089,179.34,179.23,53.56]
[1747903259186,21.74434507,179.27,179.23,53.56]
[1747903259981,21.74434507,179.26,179.23,53.56]
[1747903260198,21.74434507,179.25,179.23,53.56]
[1747903261623,19.52035694,179.3,179.23,53.56]
[1747903261788,21.74434507,179.28,179.23,53.56]
[1747903261992,21.74434507,179.27,179.23,53.56]
[1747903262205,5.57880055,179.25,179.23,53.56]
[1747903262908,21.74434507,179.24,179.23,53.56]
[1747903263086,21.74434507,179.24,179.19,208.58]
[1747903263285,21.74434507,179.21,179.19,208.58]
[1747903263511,21.74434507,179.2,179.19,208.58]
[1747903263921,21.74434507,179.2,179.13,83.0]
[1747903264094,33.46,179.24,179.13,53.58]
[1747903264296,19.52798079,179.23,179.17,26.0]
[1747903264615,19.52798079,179.23,179.15,18.64964886]
[1747903264787,41.27232586,179.23,179.16,26.0]
[1747903265113,27.32376815,179.23,179.18,26.0]
[1747903265611,21.74434507,179.21,179.1,2.75869687]
[1747903265806,21.74434507,179.18,179.11,87.06]
[1747903266121,21.74434507,179.18,179.12,113.06]
[1747903266357,5.58129151,179.17,179.12,87.06]
[1747903266492,5.58129151,179.17,179.15,26.0]
[1747903266693,5.58129151,179.17,179.12,87.06]
[1747903267204,5.58129151,179.17,179.15,26.0]
[1747903267511,5.58129151,179.17,179.12,87.06]
[1747903267931,5.58129151,179.17,179.15,26.0]
[1747903268143,27.32563658,179.17,179.15,26.0]
[1747903268313,21.74434507,179.16,179.15,26.0]
[1747903268633,33.46,179.25,179.15,26.0]
[1747903268634,21.74434507,179.18,179.15,26.0]
[1747903270024,5.58129151,179.17,179.15,26.0]
[1747903270420,21.74434507,179.16,179.12,53.6]
[1747903270630,21.74434507,179.14,179.12,53.6]
[1747903270947,19.53452028,179.17,179.12,53.6]
[1747903271248,21.74434507,179.14,179.12,53.6]
[1747903271932,21.74434507,179.13,179.08,18.64964886]
[1747903272128,5.58284948,179.12,179.08,18.64964886]
[1747903272614,27.32719455,179.12,179.08,18.64964886]
[1747903272815,21.74434507,179.12,179.08,18.64964886]
[1747903273009,21.74434507,179.12,179.1,18.64964886]
[1747903274015,27.32780659,179.11,179.08,18.64964886]
[1747903274220,21.74434507,179.1,179.08,18.64964886]
[1747903274413,27.32780659,179.11,179.08,18.64964886]
[1747903275109,5.58280855,179.13,179.08,18.64964886]
[1747903275314,21.74434507,179.11,179.08,18.64964886]
[1747903276040,5.58409649,179.08,178.96,6.6654]
[1747903276234,21.74434507,178.98,178.95,0.1752032]
[1747903276442,21.74434507,178.98,178.97,26.0]
[1747903278139,27.33156151,178.98,178.97,26.0]
[1747903278346,107.74600076,179.05,178.95,18.82485206]
[1747903278521,107.74600076,179.05,178.95,44.82485206]
[1747903278522,129.49034583,179.05,178.95,44.82485206]
[1747903279047,5.58534405,179.04,178.95,44.82485206]
[1747903279217,27.32968912,179.04,178.95,44.82485206]
[1747903279416,121.61778732,179.04,178.95,50.41294602]
[1747903279752,21.74434507,179.03,178.95,44.82485206]
[1747903279955,21.74434507,179.03,178.95,50.41292638]
[1747903281019,5.58596804,179.02,178.95,50.41292638]
[1747903281248,27.33031311,179.02,178.95,127.82485206]
[1747903281570,5.58596804,179.02,178.98,26.0]
[1747903281849,5.58596804,179.02,178.98,59.48]
[1747903282339,27.33031311,179.02,178.98,59.48]
[1747903283639,21.74434507,179.02,178.98,33.48]
[1747903283942,21.74434507,178.99,178.95,18.82485206]
[1747903284135,21.74434507,178.99,178.97,33.5]
[1747903284728,21.74434507,179.0,178.97,33.5]
[1747903284919,21.74434507,179.0,178.96,33.5]
[1747903285844,21.74434507,179.01,178.96,33.5]
[1747903286037,99.87347063,179.04,178.97,18.64964886]
[1747903286754,99.87347063,179.04,178.98,52.14964886]
[1747903286930,21.74434507,179.03,178.98,52.14964886]
[1747903287134,27.33010032,179.03,178.98,52.14964886]
[1747903287720,94.2880982,179.04,178.98,26.0]
[1747903287924,94.2880982,179.04,178.99,18.64964886]
[1747903289050,99.87348846,179.04,178.99,18.64964886]
[1747903290527,21.74434507,179.0,178.95,0.1752032]
[1747903293029,94.2880982,179.04,179.01,26.0]
[1747903293348,5.58347292,179.1,179.01,26.0]
[1747903293543,5.58409649,179.08,179.01,26.0]
[1747903293718,21.74434507,179.07,179.03,26.0]
[1747903294143,5.58347292,179.1,179.03,26.0]
[1747903294340,5.58347292,179.1,179.03,59.5]
[1747903294741,27.32781799,179.1,179.03,59.5]
[1747903295151,27.32781799,179.1,179.03,65.08550624]
[1747903295639,5.58347292,179.1,179.03,65.08550624]
[1747903296046,27.32781799,179.1,179.03,65.08550624]
[1747903297453,27.32781799,179.1,179.03,59.5]
[1747903298053,21.74434507,179.08,179.03,59.5]
[1747903298961,21.74434507,179.09,179.03,59.5]
[1747903299559,27.32828033,179.09,179.03,65.08562797]
[1747903299743,27.32828033,179.09,179.03,59.5]
[1747903299941,21.74434507,179.08,179.03,59.5]
[1747903300248,21.74434507,179.08,179.03,26.0]
[1747903300962,21.74434507,179.07,179.03,26.0]
[1747903301859,27.3290093,179.07,179.03,26.0]
[1747903302065,5.58466423,179.07,179.03,26.0]
[1747903302244,21.74434507,179.07,179.05,26.0]
[1747903302445,27.32816289,179.09,179.05,26.0]
[1747903303165,21.74434507,179.06,179.0,51.84]
[1747903303473,5.58381782,179.09,179.0,51.84]
[1747903303474,21.74434507,179.04,179.0,51.84]
[1747903303775,21.74434507,179.02,179.0,51.84]
[1747903304065,5.5861375,179.02,179.0,51.84]
[1747903304271,21.74434507,179.04,179.0,51.84]
[1747903304563,21.74434507,179.03,179.0,51.84]
[1747903305067,21.74434507,179.04,179.0,51.84]
[1747903305287,19.54761239,179.05,179.0,51.84]
[1747903305448,21.74434507,179.02,179.0,51.84]
[1747903305970,27.3300945,179.03,179.0,51.84]
[1747903306145,21.74434507,179.05,179.0,51.84]
[1747903306469,21.74434507,179.03,179.0,51.84]
[1747903306772,21.74434507,179.02,179.0,51.84]
[1747903307345,19.54652071,179.06,179.0,51.84]
[1747903307853,21.74434507,179.05,179.0,51.84]
[1747903308061,29.40089913,179.05,179.0,51.84]
[1747903308673,21.74434507,179.04,179.0,51.84]
[1747903308893,7.65655406,179.05,179.0,51.84]
[1747903308894,21.74434507,179.03,179.0,51.84]
[1747903310349,27.33025583,179.03,179.0,51.84]
[1747903313180,1.6015,179.12,179.02,26.0]
[1747903313393,21.74434507,179.08,179.02,26.0]
[1747903313891,21.74434507,179.07,179.02,26.0]
[1747903315663,5.5847202,179.06,179.02,26.0]
[1747903316271,21.74434507,179.04,179.02,26.0]
[1747903316574,21.74434507,179.03,179.0,51.84]
[1747903317784,5.58596804,179.02,179.0,51.84]
[1747903320201,21.74434507,179.03,179.0,51.84]
[1747903320202,5.58503211,179.05,179.0,51.84]
[1747903320573,5.58503211,179.05,179.0,57.4265731]
[1747903320766,2.08607242,179.04,179.0,51.84]
[1747903321995,5.58479315,179.06,179.0,51.84]
[1747903322177,39.08316118,179.11,179.04,26.0]
[1747903322376,21.74434507,179.08,179.04,26.0]
[1747903322576,39.08316118,179.11,179.04,26.0]
[1747903322780,21.74434507,179.08,179.04,26.0]
[1747903323583,5.5847202,179.06,179.04,26.0]
[1747903323778,2.08594292,179.07,179.04,26.0]
[1747903324099,2.08594292,179.07,179.04,65.08530639]
[1747903324503,7.66950935,179.1,179.04,65.08530639]
[1747903324803,21.74434507,179.09,179.04,59.5]
[1747903325611,27.32824778,179.09,179.04,59.5]
[1747903326104,21.74434507,179.08,179.04,59.5]
[1747903326303,5.58390271,179.09,178.98,83.0]
[1747903326598,21.74434507,179.06,179.01,26.0]
[1747903326788,23.82982332,179.08,179.01,26.0]
[1747903326987,23.82982332,179.08,179.01,59.5]
[1747903327191,21.74434507,179.06,179.01,59.5]
[1747903327496,21.74434507,179.05,179.01,59.5]
[1747903327802,13.83719705,179.05,179.01,59.5]
[1747903328296,13.83719705,179.05,179.01,26.0]
[1747903328506,5.5847202,179.06,179.01,26.0]
[1747903328797,13.83719705,179.05,179.02,26.0]
[1747903329502,19.42191725,179.06,179.02,26.0]
[1747903329703,21.80341037,179.06,179.02,26.0]
[1747903329897,21.80341037,179.05,179.02,26.0]
[1747903331718,33.5,179.13,178.98,135.14964886]
[1747903331719,5.58253782,179.13,179.01,26.0]
[1747903331886,2.08515144,179.12,179.06,26.0]
[1747903332082,2.08515144,179.12,179.08,26.0]
[1747903332287,21.80341037,179.11,179.08,26.0]
[1747903332685,7.66872237,179.1,179.05,48.22]
[1747903333292,2.08515144,179.1,179.05,48.22]
[1747903333692,27.38636021,179.12,179.05,53.80499261]
[1747903334482,2.08432506,179.11,179.05,53.80499261]
[1747903334892,7.66750815,179.11,179.05,53.80499261]
[1747903335407,5.58318309,179.11,179.05,53.80499261]
[1747903336420,27.38636443,179.12,179.05,53.80499261]
[1747903337800,13.95525718,179.15,179.05,136.80499261]
[1747903337991,21.80341037,179.12,179.05,136.80499261]
[1747903338198,13.95525718,179.15,179.05,136.80499261]
[1747903338393,21.80341037,179.12,179.05,136.80499261]
[1747903338939,2.08340167,179.14,179.1,26.0]
[1747903339133,2.08340167,179.14,179.12,26.0]
[1747903339295,2.08340167,179.14,179.12,74.22]
[1747903339490,5.58108846,179.18,179.12,74.22]
[1747903339914,5.5797344,179.22,179.13,18.64964886]
[1747903340217,27.38314477,179.22,179.13,18.64964886]
[1747903340896,17.89194473,179.24,179.13,18.64964886]
[1747903340897,21.80341037,179.21,179.13,18.64964886]
[1747903341217,21.80341037,179.21,179.13,101.64964886]
[1747903341515,21.80341037,179.19,179.12,157.22]
[1747903341691,21.80341037,179.18,179.12,190.72]
[1747903342016,21.80341037,179.18,179.12,107.72]
[1747903342316,21.80341037,179.17,179.12,107.72]
[1747903342610,21.80341037,179.15,179.12,48.22]
[1747903343001,5.58222619,179.14,179.12,48.22]
[1747903343989,27.38563656,179.14,179.12,48.22]
[1747903344401,5.58222619,179.14,179.12,48.22]
[1747903344608,5.58160303,179.16,179.12,48.22]
[1747903344798,5.58133811,179.17,179.12,48.22]
[1747903345011,13.95134813,179.2,179.12,48.22]
[1747903345209,21.80341037,179.18,179.12,48.22]
[1747903345425,21.80341037,179.17,179.12,48.22]
[1747903347007,21.80341037,179.18,179.12,48.22]
[1747903347315,21.80341037,179.17,179.12,48.22]
[1747903347689,13.95134813,179.2,179.12,48.22]
[1747903347896,21.80341037,179.17,179.12,48.22]
[1747903349323,5.58160303,179.16,179.12,48.22]
[1747903350306,5.58066856,179.19,179.13,26.0]
[1747903350509,19.40011236,179.19,179.13,26.0]
[1747903351024,13.8194438,179.18,179.13,26.0]
[1747903351400,5.58129151,179.17,179.15,26.0]
[1747903352106,13.94857688,179.23,179.15,26.0]
[1747903352301,13.8194438,179.22,179.16,26.0]
[1747903352501,13.8194438,179.21,179.16,26.0]
[1747903352826,13.8194438,179.2,179.16,26.0]
[1747903353032,13.8194438,179.19,179.14,26.0]
[1747903353526,5.57880055,179.25,179.16,26.0]
[1747903353699,5.57880055,179.25,179.18,26.0]
[1747903354026,5.57880055,179.25,179.2,26.0]
[1747903354324,13.8194438,179.28,179.2,74.08]
[1747903354521,13.8194438,179.27,179.2,74.08]
[1747903354699,13.8194438,179.28,179.2,74.08]
[1747903355113,13.8194438,179.27,179.2,74.08]
[1747903355520,74.92305051,179.33,179.2,74.08]
[1747903355710,21.7505917,179.28,179.2,107.56]
[1747903356105,21.7505917,179.28,179.2,113.14034814]
[1747903357325,27.32876986,179.27,179.2,113.14034814]
[1747903357710,5.57817816,179.27,179.2,113.14034814]
[1747903359315,21.7505917,179.27,179.2,113.14034814]
[1747903360026,21.7505917,179.28,179.2,113.14034814]
[1747903360227,21.7505917,179.27,179.2,107.56]
[1747903360610,21.7505917,179.28,179.2,113.1403065]
[1747903360803,13.94282993,179.31,179.2,113.1403065]
[1747903361009,21.7505917,179.28,179.2,113.1403065]
[1747903361510,21.7505917,179.28,179.2,107.56]
[1747903361707,21.7505917,179.27,179.2,190.56]
[1747903362313,21.7505917,179.27,179.2,196.14033739]
[1747903362635,21.7505917,179.28,179.2,196.14033739]
[1747903362841,21.7505917,179.28,179.2,190.56]
[1747903363141,21.7505917,179.27,179.2,190.56]
[1747903363728,5.57848934,179.26,179.2,196.14027437]
[1747903364411,5.57848934,179.26,179.2,190.56]
[1747903364615,19.51640919,179.34,179.24,26.0]
[1747903364933,21.7505917,179.3,179.24,26.0]
[1747903365117,19.51640919,179.34,179.24,26.0]
[1747903365319,21.7505917,179.3,179.24,26.0]
[1747903365732,5.57755591,179.29,179.24,26.0]
[1747903365929,27.32814761,179.29,179.24,26.0]
[1747903366936,5.57755591,179.29,179.24,26.0]
[1747903367826,5.57755591,179.29,179.26,26.0]
[1747903368130,21.7505917,179.33,179.28,26.0]
[1747903369142,5.57662279,179.32,179.28,26.0]
[1747903369346,21.7505917,179.35,179.3,26.0]
[1747903371253,5.57600089,179.34,179.3,26.0]
[1747903371632,27.32659259,179.34,179.27,74.06]
[1747903371834,5.57600089,179.34,179.27,79.63796917]
[1747903372769,27.32659259,179.34,179.27,79.63796917]
[1747903373745,27.32659259,179.34,179.27,162.63796917]
[1747903374369,21.7505917,179.35,179.27,162.63796917]
[1747903374747,21.7505917,179.35,179.3,26.0]
[1747903374979,21.7505917,179.36,179.3,26.0]
[1747903375278,21.7505917,179.35,179.3,26.0]
[1747903375575,13.93820255,179.37,179.3,26.0]
[1747903375762,21.7505917,179.36,179.3,26.0]
[1747903375955,5.57568999,179.35,179.3,26.0]
[1747903376158,5.57568999,179.35,179.32,26.0]
[1747903376771,21.7505917,179.39,179.33,26.0]
[1747903376981,21.7505917,179.42,179.35,32.326]
[1747903377287,5.57320403,179.43,179.39,26.0]
[1747903377953,5.57289344,179.44,179.39,26.0]
[1747903378172,19.35047593,179.44,179.39,26.0]
[1747903378380,5.57289344,179.44,179.39,31.57441543]
[1747903378548,13.77758249,179.47,179.4,33.46]
[1747903378746,5.57165143,179.48,179.44,26.0]
[1747903378960,13.77758249,179.5,179.44,26.0]
[1747903379851,19.34830278,179.51,179.44,31.57263116]
[1747903380051,5.57072029,179.51,179.44,31.57263116]
[1747903380270,5.57072029,179.51,179.48,26.0]
[1747903380474,13.92171213,179.58,179.48,73.84]
[1747903380668,13.77758249,179.56,179.48,73.84]
[1747903380972,5.56885894,179.57,179.52,26.0]
[1747903381178,19.34644143,179.57,179.54,26.0]
[1747903381382,13.77758249,179.55,179.52,26.0]
[1747903381967,13.77758249,179.55,179.51,33.44]
[1747903381968,5.56978946,179.54,179.51,33.44]
[1747903382182,13.77758249,179.53,179.49,26.0]
[1747903382362,13.77758249,179.52,179.49,26.0]
[1747903382877,13.77758249,179.52,179.48,47.84]
[1747903382878,13.77758249,179.5,179.48,47.84]
[1747903383071,13.77758249,179.51,179.48,47.84]
[1747903383274,13.77758249,179.52,179.48,47.84]
[1747903383471,13.77758249,179.51,179.48,47.84]
[1747903384003,13.77758249,179.54,179.48,47.84]
[1747903384185,13.77758249,179.53,179.48,47.84]
[1747903384674,13.77758249,179.51,179.48,47.84]
[1747903385072,13.77758249,179.52,179.48,47.84]
[1747903385466,13.77758249,179.51,179.48,47.84]
[1747903385677,13.77758249,179.49,179.48,47.84]
[1747903385985,5.57165143,179.48,179.46,26.0]
[1747903386172,13.77758249,179.47,179.43,33.42]
[1747903386366,13.77758249,179.47,179.43,59.42]
[1747903386563,19.50078002,179.48,179.43,59.42]
[1747903386770,13.77758249,179.47,179.43,59.42]
[1747903387888,5.57227237,179.46,179.43,59.42]
[1747903388386,19.34861313,179.5,179.45,26.0]
[1747903388582,5.57103064,179.5,179.45,26.0]
[1747903389589,19.34861313,179.5,179.45,26.0]
[1747903390998,19.34861313,179.5,179.42,315.94]
[1747903390999,13.77758249,179.47,179.42,315.94]
[1747903391166,13.77758249,179.46,179.42,315.94]
[1747903391692,13.77758249,179.47,179.42,315.94]
[1747903392077,5.57227237,179.46,179.42,315.94]
[1747903392481,19.34985486,179.46,179.42,315.94]
[1747903392866,13.77758249,179.44,179.42,47.82]
[1747903393083,13.77758249,179.43,179.42,47.82]
[1747903393372,13.77758249,179.43,179.37,33.42]
[1747903393589,13.77758249,179.45,179.37,33.42]
[1747903394073,19.35047593,179.44,179.37,33.42]
[1747903395496,5.57289344,179.44,179.37,33.42]
[1747903395690,5.57289344,179.44,179.38,18.64964886]
[1747903396284,5.57227237,179.46,179.38,24.22429485]
[1747903396786,5.57227237,179.46,179.41,26.0]
[1747903398679,19.49671223,179.52,179.45,26.0]
[1747903398882,13.77758249,179.51,179.45,26.0]
[1747903399587,13.77758249,179.49,179.45,26.0]
[1747903399799,5.57165143,179.48,179.45,26.0]
[1747903401482,5.57165143,179.48,179.43,26.0]
[1747903401883,13.77758249,179.47,179.43,26.0]
[1747903402081,13.77758249,179.44,179.42,47.82]
[1747903402281,13.77758249,179.43,179.36,6.088]
[1747903402496,13.77758249,179.41,179.35,47.56]
[1747903402803,13.77758249,179.41,179.38,26.0]
[1747903403186,13.77758249,179.43,179.38,26.0]
[1747903403387,13.77758249,179.44,179.38,26.0]
[1747903403698,13.77758249,179.43,179.38,26.0]
[1747903404103,5.57351465,179.42,179.38,26.0]
[1747903407321,5.57351465,179.42,179.39,26.0]
[1747903408189,5.57351465,179.42,179.36,26.0]
[1747903408190,5.57444673,179.39,179.36,26.0]
[1747903408395,13.77758249,179.38,179.36,26.0]
[1747903408598,13.77758249,179.38,179.32,55.2947]
[1747903408808,19.51056357,179.39,179.32,55.2947]
[1747903409112,19.51056357,179.39,179.35,26.0]
[1747903409281,5.57444673,179.39,179.35,26.0]
[1747903409486,5.57444673,179.39,179.32,55.2947]
[1747903409680,5.57444673,179.39,179.32,60.87116577]
[1747903409908,19.35202922,179.39,179.35,26.0]
[1747903410313,13.77758249,179.38,179.35,26.0]
[1747903410810,13.77758249,179.38,179.33,26.0]
[1747903411009,13.77758249,179.38,179.35,26.0]
[1747903411187,13.77758249,179.38,179.33,26.0]
[1747903411495,13.77758249,179.37,179.33,26.0]
[1747903412110,13.77758249,179.41,179.35,26.0]
[1747903412314,5.574136,179.4,179.35,26.0]
[1747903413511,5.574136,179.4,179.37,26.0]
[1747903414030,5.574136,179.4,179.35,26.0]
[1747903414396,5.57382531,179.41,179.35,26.0]
[1747903414597,8.3165,179.48,179.37,26.0]
[1747903414816,13.77758249,179.43,179.38,59.42]
[1747903415284,13.77758249,179.42,179.38,59.42]
[1747903416313,47.36167602,179.47,179.38,59.42]
[1747903416527,13.77758249,179.44,179.38,59.42]
[1747903417500,19.50186659,179.47,179.41,26.0]
[1747903417707,13.77758249,179.46,179.42,26.0]
[1747903418403,5.57258289,179.45,179.42,26.0]
[1747903419020,19.35016538,179.45,179.4,26.0]
[1747903419619,5.57258289,179.45,179.4,26.0]
[1747903420018,5.57258289,179.45,179.39,47.56]
[1747903420019,13.77758249,179.42,179.39,47.56]
[1747903420323,13.77758249,179.4,179.34,80.98]
[1747903420500,5.57506829,179.37,179.34,80.98]
[1747903420901,5.57506829,179.37,179.34,47.56]
[1747903421096,19.35265078,179.37,179.34,47.56]
[1747903421303,13.77758249,179.36,179.34,47.56]
[1747903421819,27.30433512,179.37,179.34,47.56]
[1747903422317,5.57506829,179.37,179.34,47.56]
[1747903422720,5.57482757,179.38,179.34,47.56]
[1747903423023,27.30309214,179.41,179.34,53.13599195]
[1747903423804,27.30309214,179.41,179.34,47.56]
[1747903424130,5.57382531,179.41,179.37,26.0]
[1747903424434,5.57351465,179.42,179.37,26.0]
[1747903424929,27.30278148,179.42,179.37,26.0]
[1747903425226,21.72926683,179.41,179.37,26.0]
[1747903426416,5.574136,179.4,179.37,26.0]
[1747903427518,27.30340283,179.4,179.36,33.42]
[1747903427703,21.72926683,179.37,179.34,47.56]
[1747903428028,21.72926683,179.35,179.34,47.56]
[1747903428608,27.30495682,179.35,179.34,47.56]
[1747903429326,5.57568999,179.35,179.34,47.56]
[1747903430937,5.57547852,179.36,179.34,47.56]
[1747903431109,5.57515111,179.37,179.34,47.56]
[1747903431614,27.30441794,179.37,179.34,47.56]
[1747903432329,5.57515111,179.37,179.34,47.56]
[1747903432904,5.57444673,179.39,179.34,47.56]
[1747903433229,21.72926683,179.38,179.34,47.56]
[1747903433604,5.57444673,179.39,179.34,47.56]
[1747903433933,27.30371356,179.39,179.34,47.56]
[1747903434235,5.57444673,179.39,179.34,47.56]
[1747903434417,27.30371356,179.39,179.34,47.56]
[1747903435428,13.93433028,179.42,179.34,47.56]
[1747903435725,21.72926683,179.39,179.34,47.56]
[1747903436231,21.72926683,179.4,179.34,47.56]
[1747903436410,2.07736512,179.41,179.34,79.13598343]
[1747903436615,21.72926683,179.42,179.34,79.13598343]
[1747903437108,5.57289344,179.44,179.37,26.0]
[1747903437336,21.72926683,179.42,179.37,26.0]
[1747903437505,5.5736039,179.42,179.37,26.0]
[1747903437708,21.72926683,179.4,179.35,32.0059]
[1747903437922,21.72926683,179.39,179.35,26.0]
[1747903438236,21.72926683,179.4,179.35,26.0]
[1747903439103,21.72926683,179.36,179.34,47.56]
[1747903439307,47.37496383,179.42,179.34,47.56]
[1747903439511,21.72926683,179.38,179.34,47.56]
[1747903439731,5.57485139,179.38,179.34,47.56]
[1747903441445,5.57568999,179.35,179.34,47.56]
[1747903441616,27.30495682,179.35,179.34,47.56]
[1747903441809,27.30495682,179.35,179.29,26.0]
[1747903442018,21.72926683,179.33,179.29,26.0]
[1747903442334,21.72926683,179.33,179.28,47.28]
[1747903442542,21.72926683,179.31,179.28,47.28]
[1747903443537,5.57724484,179.3,179.28,47.28]
[1747903444727,21.72926683,179.29,179.28,47.28]
[1747903445336,21.72926683,179.29,179.25,234.64]
[1747903445543,5.57786702,179.28,179.25,234.64]
[1747903446438,21.72926683,179.29,179.28,14.42213298]
[1747903447860,13.8012809,179.29,179.28,14.42213298]
[1747903448535,19.51491496,179.35,179.28,14.42213298]
[1747903448949,13.8012809,179.33,179.28,14.42213298]
[1747903449238,13.8012809,179.32,179.28,14.42213298]
[1747903449647,5.5769338,179.31,179.28,14.42213298]
[1747903449845,19.3782147,179.31,179.28,14.42213298]
[1747903450050,13.8012809,179.29,179.28,14.42213298]
[1747903451653,21.74544757,179.3,179.28,14.42213298]
[1747903451859,5.57755591,179.29,179.28,14.42213298]
[1747903454169,5.57724484,179.3,179.28,14.42213298]
[1747903455040,27.32269241,179.3,179.28,14.42213298]
[1747903455969,21.74544757,179.33,179.28,14.42213298]
[1747903456137,5.57662279,179.32,179.28,14.42213298]